Cogmind - Beta 14 @@@ ROGUE MODE // 2024.08.28 @ 19:08:33 Player: Olafz Result: Destroyed by L-31 Rogue with Katana Performance ------------- Evolutions (2) 1000 Regions Visited (5) 1000 Robots Destroyed (89) 445 Value Destroyed (2439) 2439 Prototype IDs (1) 20 Alien Tech Used (0) 0 Bonus (938) 938 TOTAL SCORE: 5842 Bonus ------- High Alert Combat Kills 238 Entered Garrisons 200 Used RIF Installer 500 Cogmind --------- Core Integrity 0/550 Matter 30/300 Energy 100/100 System Corruption 2% Temperature Cool (0) Movement Core (800) Ox15 Location -8/Materials Parts ------- > --- POWER (1) -------- (None) > --- PROPULSION (3) --- (None) > --- UTILITY (5) ------ High-capacity Storage Unit Melee Analysis Suite Weapon Cycler Hacking Suite > --- WEAPON (2) ------- Flak Cannon > --- INVENTORY (20) --- Deuterium Engine Nuclear Core Nuclear Core Light Treads Light Treads High-capacity Storage Unit Targeting Computer Improved Targeting Computer Advanced Targeting Computer Improved Melee Analysis Suite Improved Melee Analysis Suite Assault Cannon Heavy Assault Cannon Flak Cannon Shock Bomb Launcher Grenade Launcher Heavy Flail Katana Peak State ------------ > --- POWER ------------ Deuterium Engine > --- PROPULSION ------- Armored Treads Armored Treads Armored Treads > --- UTILITY ---------- High-capacity Storage Unit Targeting Computer Melee Analysis Suite Weapon Cycler Hacking Suite > --- WEAPON ----------- Gauss Rifle Flak Cannon > --- INVENTORY -------- Nuclear Core Nuclear Core Light Treads Light Treads Light Treads High-capacity Storage Unit Targeting Computer Improved Targeting Computer Advanced Targeting Computer Heavy Assault Cannon Flak Cannon Flak Cannon Flak Cannon Shock Bomb Launcher Grenade Launcher Heavy Flail Katana [Rating: 35] Favorites ----------- Power Light Nuclear Core Engine Deuterium Engine Power Core Light Nuclear Core Propulsion Light Treads Treads Light Treads Leg Aluminum Leg Utility Targeting Computer Device Weapon Cycler Storage High-capacity Storage Unit Processor Targeting Computer Hackware Hacking Suite Protection Hardened Light Armor Plating Weapon Heavy Assault Rifle Ballistic Gun Heavy Assault Rifle Ballistic Cannon Flak Cannon Build | -11 -10 -9 -8 -8 -8 ------- Run | Yrd Mat Mat Mat Gar Mat Slots Evolved 4 | . . 2 2 . . Power . | . . . . . . Propulsion 1 | . . . 1 . . Utility 3 | . . 2 1 . . Weapon . | . . . . . . Parts Attached 55 | 6 2 10 32 4 1 Power 10 | 1 . 2 5 1 1 Engine 5 | 1 . 1 1 1 1 Core 5 | . . 1 4 . . Reactor . | . . . . . . Propulsion 18 | 2 . 2 13 1 . Treads 16 | . . 2 13 1 . Leg 2 | 2 . . . . . Wheel . | . . . . . . Hover . | . . . . . . Flight . | . . . . . . Utility 9 | 1 2 2 4 . . Device 1 | . . . 1 . . Storage 2 | 1 1 . . . . Processor 3 | . 1 . 2 . . Hackware 1 | . . 1 . . . Protection 2 | . . 1 1 . . Artifact . | . . . . . . Weapon 18 | 2 . 4 10 2 . Energy Gun . | . . . . . . Energy Cannon . | . . . . . . Ballistic Gun 15 | 2 . 4 9 . . Ballistic Cannon 3 | . . . 1 2 . Launcher . | . . . . . . Special Weapon . | . . . . . . Impact Weapon . | . . . . . . Slashing Weapon . | . . . . . . Piercing Weapon . | . . . . . . Special Melee Weapon . | . . . . . . Unidentified Prototypes 1 | . . 1 . . . Parts Lost 26 | . . 1 15 4 6 Power 3 | . . . 1 1 1 Propulsion 9 | . . 1 4 1 3 Utility 4 | . . . 3 . 1 Weapon 10 | . . . 7 2 1 Highest Loss Streak 6 | . . 1 6 2 5 To Critical Strikes 1 | . . . . 1 . Average Slot Usage (%) 92 | . 97 91 89 99 93 Engine 4 | . 14 5 . 4 8 Core 5 | . . 5 8 4 . Treads 19 | . . 12 25 27 21 Leg 4 | . 28 9 . . . Device 2 | . . . . 9 9 Storage 9 | . 14 11 9 9 9 Processor 13 | . 12 11 13 18 18 Hackware 7 | . . 5 9 9 9 Protection 4 | . . 8 5 . . Ballistic Gun 15 | . 28 22 16 1 . Ballistic Cannon 3 | . . . . 15 18 Peak Build Rating 35 | 6 7 20 35 35 32 Average Rating 21 | 4 6 14 22 33 29 On Entrance 16 | . 6 7 20 35 31 Naked Turns . | . . . . . . Heaviest Build 62 | 10 45 58 60 62 62 Greatest Support 63 | 20 20 40 63 60 60 Greatest Overweight (x) 19 | . 2 5 1 1 19 Average Overweight (x) . | . . 1 . . 1 Largest Inventory Capacity 20 | 8 20 20 20 20 20 Average Capacity 19 | 6 14 20 20 20 20 Most Carried 20 | 1 6 20 20 19 19 Average Carried 15 | . 4 13 19 17 17 Final Capacity 20 | 8 20 20 20 20 20 Final Carried 19 | 1 6 18 19 15 19 Class Distribution -------------------- 76% | Scavenger-Mutant 23% | Mutant Dominant Class ---------------- Mutant | -10/Materials Scavenger-Mutant | -9/Materials Scavenger-Mutant | -8/Materials Scavenger-Mutant | -8/Garrison Scavenger-Mutant | -8/Materials Resources | -11 -10 -9 -8 -8 -8 ----------- Run | Yrd Mat Mat Mat Gar Mat Matter Collected 2181 | 174 38 431 1224 307 7 Remotely . | . . . . . . Salvage Created 3275 | . 38 726 2308 196 7 Parts 202 | . 1 52 126 18 5 Haulers Intercepted 5 | . . 2 3 . . Recyclers Shooed 3 | . . 1 2 . . Parts Field Recycled . | . . . . . . Retrieved Matter . | . . . . . . Parts Self-Destructed . | . . . . . . Prevented . | . . . . . . Kills | -11 -10 -9 -8 -8 -8 ------- Run | Yrd Mat Mat Mat Gar Mat Combat Hostiles Destroyed 67 | . 1 10 41 13 2 Melee 1 | . . . . . 1 Guns 48 | . 1 10 36 1 . Cannons 18 | . . . 5 12 1 Classes Destroyed 14 | . 1 5 8 . . Worker 4 | . . 1 3 . . Builder 1 | . . . 1 . . Hauler 5 | . . 2 3 . . Recycler 3 | . . . 3 . . Mechanic 1 | . . . 1 . . Operator 1 | . . 1 . . . Watcher 7 | . . 3 3 . 1 Swarmer 24 | . . . 11 11 2 Grunt 25 | . 1 3 19 2 . Brawler 1 | . . . 1 . . Duelist 1 | . . . 1 . . Sentry 14 | . . 7 7 . . Hunter 1 | . . . 1 . . Heavy 1 | . . . 1 . . Best Kill Streak 7 | . 1 4 5 7 2 Combat Bots Only 7 | . 1 3 5 7 2 Max Kills in Single Turn 2 | . 1 1 1 2 1 Gunslinging . | . . . . . . Exploded . | . . . . . . Melee 1 | . . . . . 1 Uniques/NPCs Destroyed . | . . . . . . Combat | -11 -10 -9 -8 -8 -8 -------- Run | Yrd Mat Mat Mat Gar Mat Hostile Shots Fired 492 | . 1 73 282 74 62 Missed 142 | . . 28 80 21 13 Damage Taken 4981 | . 10 634 3181 521 635 Core 679 | . . 118 360 39 162 Absorbed by Shields . | . . . . . . Core Remaining (%) 90 | 100 100 70 . . . Volleys Fired 279 | . 4 66 173 35 1 Largest 2 | . 2 2 2 2 2 Hottest 88 | . 40 46 72 88 88 Shots Fired 525 | . 8 132 319 64 2 Gun 459 | . 8 132 301 18 . Cannon 66 | . . . 18 46 2 Launcher . | . . . . . . Special . | . . . . . . Kinetic 525 | . 8 132 319 64 2 Thermal . | . . . . . . Explosive . | . . . . . . Electromagnetic . | . . . . . . Robot Hit Streak 36 | . 3 36 14 5 2 Robot Miss Streak 9 | . 1 3 7 9 5 Penetration Max 1 | . . . 1 . . Secondary Targets 5 | . . . 5 . . Max Gunslinging Chain 1 | . . . 1 . . Shots Hit Robots 369 | . 5 109 218 35 2 Core Hits 186 | . 3 34 112 35 2 Critical Kills . | . . . . . . Critical Parts Destroyed 3 | . . . 3 . . Critical Strikes 3 | . . . 3 . . Destroy 3 | . . . 3 . . Melee Attacks . | . . . . . . Impact . | . . . . . . Slashing . | . . . . . . Piercing . | . . . . . . Sneak Attacks . | . . . . . . Combat Hostiles . | . . . . . . Follow-up Attacks . | . . . . . . Damage Inflicted 5590 | . 38 1260 3736 505 51 Guns 4854 | . 38 1260 3481 75 . Cannons 712 | . . . 255 430 27 Explosions . | . . . . . . Melee . | . . . . . . Ramming 24 | . . . . . 24 Kinetic 5566 | . 38 1260 3736 505 27 Thermal . | . . . . . . Explosive . | . . . . . . Electromagnetic . | . . . . . . Impact . | . . . . . . Slashing . | . . . . . . Piercing . | . . . . . . Highest Corruption 3 | . . 3 2 2 2 Average Corruption 2 | . . 2 2 2 2 Corruption Purged . | . . . . . . Corruption Blocked . | . . . . . . Effects 20 | . . 2 6 8 4 Message Errors 5 | . . 2 2 . 1 Matter Fused 8 | . . . 2 4 2 Heat Flow Errors 1 | . . . 1 . . Energy Discharges 1 | . . . 1 . . Data Loss (minor) 1 | . . . . 1 . Data Loss (major) 2 | . . . . 2 . Alerts 1 | . . . . . 1 Weapon Failures 1 | . . . . 1 . Overload Shots . | . . . . . . Overflow Damage . | . . . . . . Projectiles . | . . . . . . Explosions . | . . . . . . Melee . | . . . . . . Knockbacks 21 | . . . 9 12 . Impact . | . . . . . . Kinetic 19 | . . . 8 11 . Secondary 2 | . . . 1 1 . Self-Inflicted Damage . | . . . . . . Shots . | . . . . . . Rammed 6 | . . . . 1 5 Targets Rammed 8 | . . . . 1 7 Kicked . | . . . . . . Crushed 2 | . . . . . 2 Highest Temperature 425 | . 6 35 425 128 65 Average Temperature 45 | . 6 10 60 38 21 Received Heat Transfer 1713 | . 6 231 1224 54 198 Effects 2 | . . . 2 . . Shutdowns 1 | . . . 1 . . Interference 1 | . . . 1 . . Siege Activations . | . . . . . . Robots Corrupted . | . . . . . . Combat Hostiles . | . . . . . . Parts Fried . | . . . . . . Impact Corruptions . | . . . . . . Robots Melted . | . . . . . . Combat Hostiles . | . . . . . . Parts Melted . | . . . . . . Heat Transferred . | . . . . . . Parts Sabotaged . | . . . . . . Parts Stolen . | . . . . . . Parts Stripped . | . . . . . . Power Chain Reactions . | . . . . . . Alert | -11 -10 -9 -8 -8 -8 ------- Run | Yrd Mat Mat Mat Gar Mat Peak Influence 803 | . 35 189 713 803 428 Initial 463 | . . 14 29 463 391 Average 276 | . 27 106 309 599 396 Maximum Alert Level 3 | . . . 3 3 2 Low Security (%) 53 | 100 100 100 35 . . Level 1 16 | . . . 35 . 81 Level 2 27 | . . . 27 91 18 Level 3 1 | . . . 1 8 . Level 4 . | . . . . . . Level 5 . | . . . . . . High Security . | . . . . . . Max Security . | . . . . . . Squads Dispatched 12 | . 1 2 9 . . Investigation 1 | . . . 1 . . Extermination . | . . . . . . Reinforcement 8 | . 1 2 5 . . Assault . | . . . . . . Garrison 3 | . . . 3 . . Intercept . | . . . . . . Searches Triggered . | . . . . . . Construction Impeded 2 | . . . 2 . . Haulers Reinforced . | . . . . . . Active Scanning Responses . | . . . . . . Cargo Convoy Interrupts . | . . . . . . Stealth | -11 -10 -9 -8 -8 -8 --------- Run | Yrd Mat Mat Mat Gar Mat Distress Signals 5 | . 1 2 2 . . Communications Jammed . | . . . . . . Distress Signals . | . . . . . . Times Spotted 104 | . 3 23 56 16 6 Peak Tracking Total 6 | . 3 4 6 5 3 Tactical Retreats 3 | . . . 2 1 . Traps | -11 -10 -9 -8 -8 -8 ------- Run | Yrd Mat Mat Mat Gar Mat Traps Triggered 5 | . . 2 2 1 . Indirectly . | . . . . . . Trap Hack Attempts . | . . . . . . Triggered . | . . . . . . Disarmed . | . . . . . . Reprogrammed . | . . . . . . Reused . | . . . . . . Traps Extracted . | . . . . . . Installed . | . . . . . . Triggered . | . . . . . . Machines | -11 -10 -9 -8 -8 -8 ---------- Run | Yrd Mat Mat Mat Gar Mat Machines Disabled 3 | . . . 2 1 . Max in Single Turn 1 | . . . 1 1 . Machines Repaired . | . . . . . . Machines Dismantled . | . . . . . . Machines Sabotaged . | . . . . . . Overloaded Fab Kills . | . . . . . . Hacking | -11 -10 -9 -8 -8 -8 --------- Run | Yrd Mat Mat Mat Gar Mat Machines Accessed 4 | . . . 3 1 . Terminals 3 | . . . 2 1 . Fabricators . | . . . . . . Repair Stations . | . . . . . . Recycling Units . | . . . . . . Scanalyzers . | . . . . . . Garrison Access 1 | . . . 1 . . Total Hacks 7 | . . . 5 2 . Successful 3 | . . . 3 . . Failed 4 | . . . 2 2 . Catastrophic . | . . . . . . Database Lockouts . | . . . . . . Manual 3 | . . . 3 . . Terminals 6 | . . . 4 2 . Fabricators . | . . . . . . Repair Stations . | . . . . . . Recycling Units . | . . . . . . Scanalyzers . | . . . . . . Garrison Access 1 | . . . 1 . . Terminal Hacks 1 | . . . 1 . . Zone Layout 1 | . . . 1 . . Fabricator Hacks . | . . . . . . Repair Station Hacks . | . . . . . . Recycling Unit Hacks . | . . . . . . Scanalyzer . | . . . . . . Garrison Access Hacks 1 | . . . 1 . . Unlock Access 1 | . . . 1 . . Unauthorized Hacks 1 | . . . 1 . . Terminals 1 | . . . 1 . . Botnet 1 | . . . 1 . . Fabricators . | . . . . . . Repair Stations . | . . . . . . Recycling Units . | . . . . . . Scanalyzers . | . . . . . . Garrison Access . | . . . . . . Data Cores Recovered . | . . . . . . Used . | . . . . . . Hacking Detections 4 | . . . 3 1 . Full Trace Events 1 | . . . . 1 . Feedback Events . | . . . . . . Feedback Blocked . | . . . . . . Robot Schematics Acquired . | . . . . . . Robots Built . | . . . . . . Authchips . | . . . . . . Time . | . . . . . . Total Robot Build Rating . | . . . . . . Part Schematics Acquired . | . . . . . . Parts Built . | . . . . . . Authchips . | . . . . . . Time . | . . . . . . Total Part Build Rating . | . . . . . . Parts Repaired . | . . . . . . Time . | . . . . . . Parts Recycled . | . . . . . . Recycled Matter . | . . . . . . Retrieved Matter . | . . . . . . Retrieved Components . | . . . . . . Parts Scanalyzed . | . . . . . . Part Schematics Acquired . | . . . . . . Parts Damaged . | . . . . . . Bothacking | -11 -10 -9 -8 -8 -8 ------------ Run | Yrd Mat Mat Mat Gar Mat Used RIF Installer 1 | . . . . 1 . Robots Hacked . | . . . . . . Non-combat . | . . . . . . Combat . | . . . . . . Robot Hacks Applied . | . . . . . . Relay Couplers Released . | . . . . . . Fabnet Peak Effective % . | . . . . . . Robots Rewired . | . . . . . . Allies Hacked . | . . . . . . Hacks Repelled . | . . . . . . Allies | -11 -10 -9 -8 -8 -8 -------- Run | Yrd Mat Mat Mat Gar Mat Total Allies . | . . . . . . Largest Group . | . . . . . . Highest-Rated Group . | . . . . . . Highest-Rated Ally . | . . . . . . Total Orders . | . . . . . . Ally Attacks . | . . . . . . Total Damage . | . . . . . . Kills . | . . . . . . Allies Corrupted . | . . . . . . Allies Melted . | . . . . . . Intel | -11 -10 -9 -8 -8 -8 ------- Run | Yrd Mat Mat Mat Gar Mat Robot Analysis Total . | . . . . . . Derelict Logs Recovered . | . . . . . . Drone Launches . | . . . . . . Drone Recoveries . | . . . . . . Exploration | -11 -10 -9 -8 -8 -8 ------------- Run | Yrd Mat Mat Mat Gar Mat Turns Passed 3786 | 60 220 1266 1384 682 174 Spaces Moved 1447 | 45 115 407 529 296 55 Core 5 | 4 . . . . 1 Treads 1120 | . . 241 529 296 54 Legs 322 | 41 115 166 . . . Wheels . | . . . . . . Hover . | . . . . . . Flight . | . . . . . . Fastest Speed 50 | 50 120 240 160 170 166 Average Speed 199 | 113 177 254 162 201 255 Slowest Speed 1000 | 120 260 470 240 250 1000 Overloaded Moves . | . . . . . . Propulsion Burnouts . | . . . . . . Robots Hopped . | . . . . . . Cave-ins Triggered . | . . . . . . Exploration Rate (%) 29 | 3 27 48 57 39 5 Regions Visited 5 Branch Regions . Pre-discovered Areas . | . . . . . . Known Exits Taken 1 | . . . 1 . . Unknown Exits Taken 3 | 1 1 1 . . . Scrap Searched . | . . . . . . Spaces Dug 4 | . . . . 4 . Terrain Destroyed 4 | . . . . 4 . Melee . | . . . . . . Projectile 4 | . . . . 4 . AOE . | . . . . . . Terrain Rammed . | . . . . . . Walls Destroyed . | . . . . . . Machines Disabled . | . . . . . . Actions | -11 -10 -9 -8 -8 -8 --------- Run | Yrd Mat Mat Mat Gar Mat Total 1865 | 51 125 518 768 334 69 Wait 24 | . 1 11 10 . 2 Move 1441 | 44 114 406 528 294 55 Hop . | . . . . . . Pick Up 36 | 1 4 15 13 . 3 Fast Attach 15 | 6 1 5 3 . . Attach 18 | . . . 14 4 . Detach 1 | . . 1 . . . Swap 22 | . 1 5 15 . 1 Drop 21 | . . 9 12 . . Fire 279 | . 4 66 173 35 1 Melee . | . . . . . . Ram 1 | . . . . . 1 Kick . | . . . . . . Crush 7 | . . . . 1 6 Escape Stasis . | . . . . . . Rewire . | . . . . . . Trap . | . . . . . . Miscellaneous . | . . . . . . Route ------- -11/Scrapyard -10/Materials -9/Materials -8/Materials (discovered 3 exits: [*Fac x2] / Gar) -8/Garrison -8/Materials History --------- Turn | Location | Event 5 | -11/Scrapyard | Discovered new exit (range 15) 61 | -11/Scrapyard | Entered Materials 239 | -10/Materials | Discovered new exit (range 8) 281 | -10/Materials | Entered another Materials area 281 | -9/Materials | Evolved 2 slots: Utility x2 312 | -9/Materials | Build established: Mutant 1163 | -9/Materials | Build established: Scavenger-Mutant 1404 | -9/Materials | Discovered new exit (range 13) 1547 | -9/Materials | Entered another Materials area 1547 | -8/Materials | Evolved 2 slots: Propulsion x1, Utility x1 1942 | -8/Materials | Discovered new exit (range 3) 2129 | -8/Materials | Lost 3 parts (1n2w) 2602 | -8/Materials | Discovered new exit (range 4) 2718 | -8/Materials | Garrison activated, responded to threat 2736 | -8/Materials | Lost 6 parts (3n1u2w) 2764 | -8/Materials | Core integrity fell below 50% 2792 | -8/Materials | Lost 3 parts (1p2w) 2929 | -8/Materials | Identified exit to Garrison 2931 | -8/Materials | Entered Garrison 3047 | -8/Garrison | Triggered checkpoint 3279 | -8/Garrison | Triggered checkpoint 3289 | -8/Garrison | Triggered checkpoint 3324 | -8/Garrison | Destroyed 7 combat bots 3461 | -8/Garrison | Discovered new exit (range 12) 3478 | -8/Garrison | Installed Relay Interface Framework 3613 | -8/Garrison | Entered Materials 3781 | -8/Materials | Core integrity fell below 20% 3787 | -8/Materials | Destroyed by L-31 Rogue with Katana Last Messages --------------- Arm. Treads destroyed. System corrupted: Matter fused (-5). Slammed into S-10 Pest. Critical hit (Burn: +37). Slammed into S-10 Pest. =QS